[Event "CZE-ch U14 Open 2023"]
[Site "Teplice"]
[Date "2023.03.17"]
[Round "8.4"]
[White "Babula, Matej"]
[Black "Zemek, Antonin"]
[Result "1-0"]
[ECO "C43"]
[WhiteElo "1796"]
[BlackElo "1739"]
[Annotator "NA RC COMBH"]
[PlyCount "71"]
[EventDate "2023.03.09"]
[EventType "swiss"]
[EventCountry "CZE"]
[SourceTitle "playchess.com"]
[Source "ChessBase"]
[SourceQuality "1"]
[TimeControl "40/5400+30:1800+30"]

1. e4 {[%emt 0:00:03]} e5 {[%emt 0:00:44]} 2. Nf3 {[%emt 0:00:07]} Nf6 {[%emt 0:00:38]} 3. d4 {[%emt 0:00:35]} Nxe4 {[%emt 0:00:52]} 4. dxe5 {[%emt 0:00:14]} Nc5 {[%emt 0:01:32]} 5. Bc4 {[%emt 0:06:50]} Be7 {[%emt 0:04:40]} 6. O-O {[%emt 0:03:00]} O-O {[%emt 0:04:44]} 7. Nc3 {[%emt 0:03:24]} d6 {[%emt 0:02:40]} 8. exd6 {[%emt 0:06:25]} cxd6 {[%emt 0:04:50]} 9. Nd5 {[%emt 0:05:56]} Be6 {[%emt 0:02:32]} 10. Bf4 {[%emt 0:03:25]} Bxd5 {[%emt 0:07:52]} 11. Bxd5 {[%emt 0:02:08]} Nc6 {[%emt 0:03:12]} 12. Re1 {[%emt 0:02:29]} Ne6 {[%emt 0:04:43]} 13. Bg3 {[%emt 0:02:22]} Qd7 {[%emt 0:18:02]} 14. c3 {[%emt 0:01:53]} Rae8 {[%emt 0:02:32]} 15. Qd2 {[%emt 0:07:49]} Nc7 {[%emt 0:04:23]} 16. Bb3 {[%emt 0:03:07]} Rd8 {[%emt 0:03:33]} 17. Rad1 {[%emt 0:01:50]} h6 {[%emt 0:02:54]} 18. Nd4 {[%emt 0:04:04]} Rfe8 {[%emt 0:04:54]} 19. Qf4 {[%emt 0:04:23]} Bf6 {[%emt 0:01:27]} 20. Nf5 {[%emt 0:02:37]} Rxe1+ {[%emt 0:03:52]} 21. Rxe1 {[%emt 0:00:02]} Re8 {[%emt 0:03:17]} 22. Rxe8+ {[%emt 0:02:14]} Qxe8 {[%emt 0:00:14]} 23. h3 {[%emt 0:00:32]} Qe1+ {[%emt 0:04:22]} 24. Kh2 {[%emt 0:00:01]} Be5 {[%emt 0:00:23]} 25. Nxh6+ {[%emt 0:03:28]} Kh7 {[%emt 0:00:35]} 26. Bc2+ {[%emt 0:00:23]} Kh8 {[%emt 0:00:15]} 27. Nxf7+ {[%emt 0:03:25]} Kg8 {[%emt 0:00:14]} 28. Nxe5 {[%emt 0:00:41]} Nxe5 {[%emt 0:00:45]} 29. Bb3+ {[%emt 0:00:46]} Kh7 {[%emt 0:00:27]} 30. Qf5+ {[%emt 0:02:50]} g6 {[%emt 0:00:23]} 31. Qf8 {[%emt 0:00:48]} Qd2 {[%emt 0:01:06]} 32. Bg8+ {[%emt 0:01:58]} Kh8 {[%emt 0:00:06]} 33. Be6+ {[%emt 0:00:09]} Kh7 {[%emt 0:00:04]} 34. Qg8+ {[%emt 0:00:05]} Kh6 {[%emt 0:00:05]} 35. Qh8+ {[%emt 0:00:06]} Kg5 {[%emt 0:00:06]} 36. h4# {[%emt 0:00:15]} 1-0

[Event "CZE-ch U14 Open 2023"]
[Site "Teplice"]
[Date "2023.03.17"]
[Round "8.5"]
[White "Roubal, Matyas"]
[Black "Topencik, Bruno"]
[Result "1/2-1/2"]
[ECO "C02"]
[WhiteElo "1948"]
[BlackElo "1844"]
[Annotator "TA"]
[PlyCount "141"]
[EventDate "2023.03.09"]
[EventType "swiss"]
[EventCountry "CZE"]
[SourceTitle "playchess.com"]
[Source "ChessBase"]
[SourceQuality "1"]
[TimeControl "40/5400+30:1800+30"]

{[%evp 15,141,17,47,30,34,32,36,38,37,33,32,0,0,0,33,8,8,12,10,15,78,37,54,0,0,-12,33,0,0,0,51,50,55,55,64,55,70,32,20,0,0,0,0,0,0,0,18,18,18,18,18,18,18,18,18,18,18,0,18,18,18,18,18,18,18,0,18,0,18,18,18,0,0,0,0,0,18,0,0,0,18,0,18,0,18,0,86,86,86,0,86,0,0,0,86,86,86,86,86,86,86,86,86,86,86,86,86,0,86,40,86,0,86,0,0,0,40,0,26,0,26,0,86,86,86,86,86,86]} 1. e4 {[%emt 0:00:02]} e6 {[%emt 0:00:05]} 2. d4 {[%emt 0:00:11]} d5 {[%emt 0:00:05]} 3. e5 {[%emt 0:00:08]} c5 {[%emt 0:00:04]} 4. c3 {[%emt 0:00:04]} Nc6 {[%emt 0:00:03]} 5. Nf3 {[%emt 0:00:05]} Nge7 {[%emt 0:00:04]} 6. Na3 {[%emt 0:01:24]} cxd4 {[%emt 0:00:08]} 7. cxd4 {[%emt 0:00:03]} Nf5 {[%emt 0:00:10]} 8. Nc2 {[%emt 0:00:25]} Nb4 {[%emt 0:01:09]} 9. Nxb4 {[%emt 0:01:28] C02: French: Advance Variation.} Bxb4+ {[%emt 0:00:07]} 10. Bd2 {[%emt 0:00:04]} Bxd2+ {[%emt 0:00:44]} 11. Qxd2 {[%emt 0:00:10] White is slightly better.} Bd7 {[%emt 0:02:10] [#]} 12. Rc1 $146 {[%emt 0:06:55]} ({Predecessor:} 12. Bd3 Nh4 13. Nxh4 Qxh4 14. Qe3 O-O 15. O-O f6 16. g3 Qh5 17. exf6 Rxf6 18. f4 {1-0 Shabalov,A (2556)-Ampie,M (2327) Chicago op 26th 2017 (6)}) 12... Qb6 {[%emt 0:07:19]} 13. Rc5 {[%emt 0:23:29]} O-O {[%emt 0:15:05]} 14. Bd3 {[%emt 0:04:49]} Ne7 {[%emt 0:12:33]} 15. b4 {[%emt 0:03:43] Black is weak on the dark squares} Rfc8 {[%emt 0:03:31]} 16. O-O {[%emt 0:01:43]} Qd8 {[%emt 0:05:58]} 17. Rfc1 {[%emt 0:01:49]} b6 {[%emt 0:04:55]} (17... a6 $11) 18. R5c2 {[%emt 0:02:45] White has more active pieces.} Qe8 {[%emt 0:01:42]} 19. Qe2 {[%emt 0:10:25]} (19. Rxc8 $14 Rxc8 20. Rxc8 Nxc8 21. Qc3) 19... Rxc2 {[%emt 0:08:27]} 20. Rxc2 {[%emt 0:00:05]} Rc8 {[%emt 0:00:33]} (20... Ba4 $5 {[%cal Ra4c2]} 21. Rc1 (21. Rc7 Rc8 $11) 21... Rc8 $11) 21. Ba6 {[%emt 0:06:52]} Rxc2 {[%emt 0:08:40]} 22. Qxc2 {[%emt 0:00:17]} Qd8 {[%emt 0:05:27]} (22... Ba4 $11 23. Qc7 Nc6) 23. Bd3 $14 {[%emt 0:05:55]} h6 {[%emt 0:01:21]} 24. b5 {[%emt 0:00:56]} Qc8 {[%emt 0:01:07] Threatens to win with ...Qxc2.} 25. Qb2 {[%emt 0:00:30]} Be8 {[%emt 0:01:39]} 26. Ne1 {[%emt 0:02:23]} f6 {[%emt 0:01:24]} 27. f4 {[%emt 0:01:47]} fxe5 {[%emt 0:01:31]} 28. fxe5 {[%emt 0:00:09]} Bg6 {[%emt 0:01:42]} 29. Bxg6 {[%emt 0:02:33]} Nxg6 {[%emt 0:00:05]} 30. Qc2 {[%emt 0:00:06]} Qxc2 {[%emt 0:00:55]} 31. Nxc2 $11 {[%emt 0:00:34][%mdl 4096] Endgame KN-KN} Kf7 {[%emt 0:00:23]} 32. g3 {[%emt 0:00:35]} Ne7 {[%emt 0:00:31]} 33. Kf2 {[%emt 0:00:12]} Ke8 {[%emt 0:00:44]} 34. Kf3 {[%emt 0:00:14]} g6 {[%emt 0:00:56]} 35. Nb4 {[%emt 0:01:25]} Kd7 {[%emt 0:01:31]} 36. Ke3 {[%emt 0:02:00]} Kd8 {[%emt 0:01:02]} 37. Kd3 {[%emt 0:00:09]} Kc7 {[%emt 0:01:12]} 38. Nc2 {[%emt 0:00:03]} Kd7 {[%emt 0:00:32]} 39. Ne3 {[%emt 0:00:02]} Ke8 {[%emt 0:01:03]} 40. Ng4 {[%emt 0:00:03]} Ng8 {[%emt 0:00:16]} 41. Ke3 {[%emt 0:30:12]} Kf7 {[%emt 0:30:22]} (41... h5 $5 {[%cal Rh5g4]} 42. Nf2 Nh6 $11) 42. Nf2 {[%emt 0:00:16]} Ne7 {[%emt 0:00:56]} 43. Kd3 {[%emt 0:00:11]} Ke8 {[%emt 0:00:12]} 44. Nh3 {[%emt 0:00:16]} Kf7 {[%emt 0:00:41]} 45. Nf4 {[%emt 0:00:04]} Nf5 {[%emt 0:00:32]} 46. Ng2 {[%emt 0:00:38]} (46. g4 $5 {[%cal Rg4f5]} Ne7 47. Kd2 $14) 46... Ne7 {[%emt 0:00:10]} 47. Ne3 {[%emt 0:00:03]} Ke8 {[%emt 0:00:52]} 48. Ng4 {[%emt 0:01:06]} Ng8 {[%emt 0:00:10]} 49. Ke3 {[%emt 0:03:20]} Kf7 {[%emt 0:00:33]} 50. Kf4 {[%emt 0:00:04]} Ke7 {[%emt 0:01:05]} (50... g5+ $11 51. Kf3 Ne7) 51. h4 $16 {[%emt 0:10:55]} Kf7 {[%emt 0:02:01]} 52. Nh2 {[%emt 0:00:06]} (52. Nf2 $1 $16) 52... Ne7 {[%emt 0:00:27] [#]} (52... h5 $1 $11) 53. Nf3 {[%emt 0:00:37]} ({Better is} 53. g4 $1 $16) 53... Nf5 $11 {[%emt 0:01:10]} 54. g4 {[%emt 0:01:01]} Ne7 {[%emt 0:00:10]} (54... Ng7 $1 $11 {remains equal.}) 55. Ng1 $16 {[%emt 0:00:10]} Ke8 {[%emt 0:00:34]} 56. Nh3 {[%emt 0:00:10]} Kf7 {[%emt 0:00:43]} 57. Kf3 {[%emt 0:00:14]} Ke8 {[%emt 0:00:30]} 58. Nf4 {[%emt 0:00:04]} Kf7 {[%emt 0:00:12][%cal Oh6h5]} 59. Kg3 {[%emt 0:00:15]} Nc8 {[%emt 0:00:40]} 60. Kf2 {[%emt 0:00:35]} Ne7 {[%emt 0:00:29][%cal Oh6h5]} 61. Ke2 {[%emt 0:08:17]} ({White should play} 61. h5 $16) 61... Nc8 {[%emt 0:01:08]} (61... h5 $11 {keeps the balance.}) 62. Kd2 {[%emt 0:00:07]} (62. h5 $16 g5 63. Nd3) 62... Ne7 {[%emt 0:00:12] [#]} (62... g5 $14) 63. Kc2 {[%emt 0:00:08]} (63. h5 $1 $16) 63... Nc8 {[%emt 0:00:36]} (63... h5 $11 64. gxh5 gxh5) 64. Kc3 {[%emt 0:00:05]} (64. h5 $16 gxh5 65. Nxh5) 64... Ne7 $11 {[%emt 0:01:01]} 65. Kb3 {[%emt 0:00:03]} Nc8 {[%emt 0:00:57]} 66. Nd3 {[%emt 0:00:02]} Ke7 {[%emt 0:01:05]} 67. Ka4 {[%emt 0:00:20]} Ke8 {[%emt 0:00:42]} 68. Kb4 {[%emt 0:01:14]} Ke7 {[%emt 0:00:36]} (68... Ne7 $11) 69. a4 $16 {[%emt 0:00:02][%cal Ba2a4,Ba4a5][%mdl 32] White is better.} Ke8 {[%emt 0:00:27]} 70. a5 {[%emt 0:00:11]} Ke7 {[%emt 0:00:09]} 71. Nf4 {[%emt 0:03:13] Weighted Error Value: White=0.12 (very precise) /Black=0.16 (very precise)} 1/2-1/2

[Event "CZE-ch U14 Open 2023"]
[Site "Teplice"]
[Date "2023.03.17"]
[Round "8.6"]
[White "Hobza, Richard"]
[Black "Popov, Roman"]
[Result "0-1"]
[ECO "A06"]
[WhiteElo "1702"]
[BlackElo "2353"]
[Annotator "TA"]
[PlyCount "98"]
[EventDate "2023.03.09"]
[EventType "swiss"]
[EventCountry "CZE"]
[SourceTitle "playchess.com"]
[Source "ChessBase"]
[SourceQuality "1"]
[TimeControl "40/5400+30:1800+30"]

{[%evp 9,97,4,2,-16,-8,-17,-15,-14,-14,-38,-15,-16,0,-20,-1,-13,-12,-20,-21,-41,-31,-56,-39,-48,-4,-20,-22,-55,-56,-56,-58,-87,-103,-88,-90,-185,-196,-235,-227,-233,-134,-179,-187,-214,-216,-219,-206,-212,-227,-217,-217,-218,-217,-272,-271,-330,-329,-312,-294,-298,-268,-400,-390,-385,-314,-312,-315,-399,-398,-384,-391,-361,-341,-334,-208,-209,0,0,0,-191,0,-283,-286,-300,-299,-652,-593,-819,-542,-779]} 1. Nf3 {[%emt 0:00:05]} d5 {[%emt 0:00:15]} 2. g3 {[%emt 0:00:17]} c6 {[%emt 0:00:50]} 3. Bg2 {[%emt 0:00:35]} Bf5 {[%emt 0:01:10]} 4. O-O {[%emt 0:02:08]} e6 {[%emt 0:00:54]} 5. d4 {[%emt 0:02:56]} h6 {[%emt 0:01:48]} 6. c3 {[%emt 0:03:52] A07: Réti Opening: New York and Capablanca Systems.} Nf6 {[%emt 0:01:13]} 7. Re1 {[%emt 0:02:42]} Be7 {[%emt 0:01:31]} 8. Qb3 {[%emt 0:05:33] The position is equal.} Qb6 {[%emt 0:07:21]} 9. Nbd2 {[%emt 0:02:58][%cal Bb1d2,Bd2f3,Bf3d4][%mdl 32]} O-O {[%emt 0:05:04]} 10. Ne5 {[%emt 0:13:12]} c5 {[%emt 0:22:48] [#]} 11. dxc5 $146 {[%emt 0:11:58]} ({Predecessor:} 11. Qxb6 axb6 12. e4 dxe4 13. Nxe4 cxd4 14. Nxf6+ gxf6 15. Nc4 b5 16. Nb6 Ra6 17. Nd5 {0-1 Kubrican,A (1862)-Mudrak,J (2196) SVK-ch Amateurs 2021 (1)}) 11... Bxc5 {[%emt 0:03:34]} 12. Nd3 {[%emt 0:09:08]} Nbd7 {[%emt 0:18:39]} 13. Qxb6 {[%emt 0:07:32]} Bxb6 {[%emt 0:07:51]} 14. Nf3 {[%emt 0:13:34]} Rfe8 {[%emt 0:06:32]} 15. Bf4 {[%emt 0:04:19]} Ne4 {[%emt 0:10:29]} 16. Kf1 {[%emt 0:07:15]} f6 {[%emt 0:02:31]} 17. Nd4 {[%emt 0:05:19]} Bg6 {[%emt 0:01:35]} 18. f3 {[%emt 0:03:34]} Nec5 $36 {[%emt 0:01:13][%mdl 2048] White is under pressure.} 19. Nxc5 {[%emt 0:00:20]} Nxc5 {[%emt 0:00:23]} 20. Nb3 {[%emt 0:00:48]} Na4 {[%emt 0:02:19]} 21. Bc1 {[%emt 0:01:04]} e5 {[%emt 0:01:26] Black has more active pieces. The white rooks are badly placed.} 22. e4 {[%emt 0:00:58] [#]} (22. f4 $17 {was worth a try.}) 22... Rad8 $1 $19 {[%emt 0:01:00]} 23. Rb1 {[%emt 0:00:57]} dxe4 {[%emt 0:00:53]} 24. fxe4 {[%emt 0:00:06]} Bf7 {[%emt 0:00:13]} (24... Rd3 $19 {Hoping for ...Red8.} 25. Re2 Bf7) 25. Be3 {[%emt 0:01:00]} Bc4+ {[%emt 0:00:18]} 26. Kf2 {[%emt 0:00:04]} Bd3 {[%emt 0:01:06] Repels Bf1} 27. Bxb6 {[%emt 0:00:40]} axb6 {[%emt 0:00:12]} ({Stronger than} 27... Nxb6 28. Rbd1 $17) 28. Rbd1 {[%emt 0:00:44]} Nxb2 {[%emt 0:00:18][%cal Ba4b2,Bb2c4,Bc4d6,Bd6e4][%mdl 32]} 29. Rd2 {[%emt 0:00:08]} Nc4 {[%emt 0:00:27]} 30. Rdd1 {[%emt 0:00:18]} Rd6 {[%emt 0:00:58]} 31. Bf1 {[%emt 0:00:52]} Bxf1 {[%emt 0:00:34]} 32. Rxd6 {[%emt 0:00:02]} Nxd6 {[%emt 0:00:07]} 33. Kxf1 {[%emt 0:00:03][%mdl 4096] Endgame KRN-KRN} Ra8 {[%emt 0:00:43]} 34. Re2 {[%emt 0:00:23]} Rc8 {[%emt 0:00:18]} 35. Rd2 {[%emt 0:01:43]} (35. Re3 $142) 35... Nxe4 {[%emt 0:00:39]} 36. Rd7 {[%emt 0:00:12]} Nxc3 {[%emt 0:00:41]} 37. Rxb7 {[%emt 0:00:12]} b5 {[%emt 0:00:31]} (37... Nxa2 $2 38. Rxb6 Rc2 39. h3 $19) 38. Na5 {[%emt 0:00:52]} Ra8 {[%emt 0:00:32]} (38... Nxa2 $2 {loses.} 39. Rxb5 Rc2 40. h4 $19) 39. Nc6 {[%emt 0:00:10]} Rxa2 {[%emt 0:00:27]} 40. Ne7+ {[%emt 0:00:11]} Kh7 {[%emt 0:00:33]} 41. Nf5 {[%emt 0:30:16]} Ra1+ {[%emt 0:30:29]} 42. Kg2 {[%emt 0:00:24] [#]} Kg6 {[%emt 0:00:00]} (42... h5 $1 $19 43. Rxg7+ Kh8) 43. Nh4+ $1 $11 {[%emt 0:00:00]} Kh7 $2 {[%emt 0:00:00]} (43... Kh5 $11 44. Rxg7 Ra4) 44. Nf5 $19 {[%emt 0:00:00]} Ra2+ $2 {[%emt 0:00:00]} (44... h5 $19 45. Rxg7+ Kh8) 45. Kh3 $2 {[%emt 0:00:00][%mdl 8192]} (45. Kf1 $1 $11 {and White has nothing to worry.}) 45... Ne4 {[%emt 0:00:00]} 46. Rxg7+ {[%emt 0:00:00]} Kh8 {[%emt 0:00:00] White must now prevent ...Ng5+.} 47. Rg6 {[%emt 0:00:00]} (47. g4) 47... h5 {[%emt 0:00:00] Black is clearly winning.} 48. Rh6+ {[%emt 0:00:00]} Kg8 {[%emt 0:00:00] ( -> ...Ng5+)} 49. Rxh5 {[%emt 0:00:00]} Ng5+ {[%emt 0:00:00] Weighted Error Value: White=0.42/Black=0.24 (precise)} 0-1

[Event "CZE-ch U14 Open 2023"]
[Site "Teplice"]
[Date "2023.03.17"]
[Round "8.7"]
[White "Krautschneider, Daniel Jan"]
[Black "Zrubek, Dan"]
[Result "0-1"]
[ECO "B23"]
[WhiteElo "1679"]
[BlackElo "1752"]
[Annotator "NA RC COMBH"]
[PlyCount "72"]
[EventDate "2023.03.09"]
[EventType "swiss"]
[EventCountry "CZE"]
[SourceTitle "playchess.com"]
[Source "ChessBase"]
[SourceQuality "1"]
[TimeControl "40/5400+30:1800+30"]

1. e4 {[%emt 0:00:14]} c5 {[%emt 0:00:03]} 2. Nc3 {[%emt 0:00:07]} d6 {[%emt 0:00:22]} 3. g3 {[%emt 0:00:06]} Nc6 {[%emt 0:00:42]} 4. Bg2 {[%emt 0:00:11]} g6 {[%emt 0:00:54]} 5. Nge2 {[%emt 0:00:13]} Bg7 {[%emt 0:00:37]} 6. O-O {[%emt 0:00:13]} e6 {[%emt 0:05:48]} 7. f4 {[%emt 0:00:22]} Nge7 {[%emt 0:00:41]} 8. d3 {[%emt 0:00:34]} O-O {[%emt 0:02:16]} 9. Kh1 {[%emt 0:01:36]} f5 {[%emt 0:05:44]} 10. Be3 {[%emt 0:00:41]} Nd4 {[%emt 0:02:16]} 11. Bg1 {[%emt 0:08:34]} Bd7 {[%emt 0:07:24]} 12. Qd2 {[%emt 0:01:02]} Bc6 {[%emt 0:01:35]} 13. Rae1 {[%emt 0:02:56]} b5 {[%emt 0:06:54]} 14. Nxd4 {[%emt 0:02:37]} cxd4 {[%emt 0:00:16]} 15. Ne2 {[%emt 0:00:12]} e5 {[%emt 0:00:28]} 16. c3 {[%emt 0:03:31]} dxc3 {[%emt 0:08:42]} 17. bxc3 {[%emt 0:01:39]} d5 {[%emt 0:02:54]} 18. fxe5 {[%emt 0:02:58]} Bxe5 {[%emt 0:05:49]} 19. Nd4 {[%emt 0:04:01]} Bxd4 {[%emt 0:10:44]} 20. Bxd4 {[%emt 0:00:11]} dxe4 {[%emt 0:01:09]} 21. dxe4 {[%emt 0:00:20]} Qd7 {[%emt 0:02:32]} 22. e5 {[%emt 0:05:02]} Bxg2+ {[%emt 0:03:44]} 23. Qxg2 {[%emt 0:00:44]} Qc6 {[%emt 0:06:29]} 24. Rd1 {[%emt 0:00:33]} Rad8 {[%emt 0:02:27]} 25. Rfe1 {[%emt 0:03:41]} Rfe8 {[%emt 0:04:34]} 26. Rd2 {[%emt 0:05:53]} Qxg2+ {[%emt 0:00:48]} 27. Kxg2 {[%emt 0:00:23]} Nc6 {[%emt 0:00:15]} 28. Kf2 {[%emt 0:01:24]} Nxe5 {[%emt 0:04:55]} 29. Kg2 {[%emt 0:01:37]} Nc4 {[%emt 0:06:32]} 30. Rde2 {[%emt 0:00:46]} Rxe2+ {[%emt 0:03:04]} 31. Rxe2 {[%emt 0:00:15]} Kf7 {[%emt 0:00:47]} 32. Bxa7 {[%emt 0:00:25]} Rd3 {[%emt 0:00:50]} 33. Bd4 {[%emt 0:01:00]} b4 {[%emt 0:00:33]} 34. Rc2 {[%emt 0:01:39]} Rxd4 {[%emt 0:00:53]} 35. Kf3 {[%emt 0:01:39]} Rd3+ {[%emt 0:01:55]} 36. Kf4 {[%emt 0:00:31]} Kf6 {[%emt 0:01:06]} 0-1

[Event "CZE-ch U14 Open 2023"]
[Site "Teplice"]
[Date "2023.03.17"]
[Round "8.8"]
[White "Dusanek, Michal"]
[Black "Veverka, Vladimir"]
[Result "0-1"]
[ECO "D02"]
[WhiteElo "1624"]
[BlackElo "1735"]
[Annotator "NA RC COMBH"]
[PlyCount "66"]
[EventDate "2023.03.09"]
[EventType "swiss"]
[EventCountry "CZE"]
[SourceTitle "playchess.com"]
[Source "ChessBase"]
[SourceQuality "1"]
[TimeControl "40/5400+30:1800+30"]

1. d4 {[%emt 0:00:04]} Nf6 {[%emt 0:00:37]} 2. Nf3 {[%emt 0:00:51]} d5 {[%emt 0:01:26]} 3. Bf4 {[%emt 0:01:46]} c5 {[%emt 0:00:22]} 4. c3 {[%emt 0:01:31]} Nc6 {[%emt 0:01:57]} 5. Qb3 {[%emt 0:07:39]} c4 {[%emt 0:02:07]} 6. Qc2 {[%emt 0:01:13]} Bg4 {[%emt 0:05:58]} 7. Nbd2 {[%emt 0:01:25]} Bh5 {[%emt 0:04:24]} 8. Ne5 {[%emt 0:09:35]} Nxe5 {[%emt 0:02:30]} 9. dxe5 {[%emt 0:00:50]} Nd7 {[%emt 0:03:43]} 10. e4 {[%emt 0:39:28]} e6 {[%emt 0:02:19]} 11. g4 {[%emt 0:05:08]} Bxg4 {[%emt 0:04:40]} 12. Bg2 {[%emt 0:04:08]} Nb6 {[%emt 0:03:27]} 13. a4 {[%emt 0:04:43]} a5 {[%emt 0:03:37]} 14. Be3 {[%emt 0:03:43]} Ra6 {[%emt 0:07:20]} 15. b3 {[%emt 0:00:53]} Qc7 {[%emt 0:03:15]} 16. exd5 {[%emt 0:06:45]} exd5 {[%emt 0:02:42]} 17. O-O {[%emt 0:00:20]} Be2 {[%emt 0:07:22]} 18. Rfe1 {[%emt 0:01:00]} Bd3 {[%emt 0:00:16]} 19. Qd1 {[%emt 0:02:18]} Bc5 {[%emt 0:01:27]} 20. Bxc5 {[%emt 0:01:32]} Qxc5 {[%emt 0:00:11]} 21. e6 {[%emt 0:00:04]} O-O {[%emt 0:01:34]} 22. exf7+ {[%emt 0:01:03]} Kxf7 {[%emt 0:01:39]} 23. bxc4 {[%emt 0:01:55]} dxc4 {[%emt 0:02:54]} 24. Ne4 {[%emt 0:01:28]} Bxe4 {[%emt 0:02:04]} 25. Rxe4 {[%emt 0:00:40]} Kg8 {[%emt 0:01:31]} 26. Qd4 {[%emt 0:01:04]} Qf5 {[%emt 0:06:39]} 27. Rg4 {[%emt 0:01:01]} g6 {[%emt 0:07:12]} 28. Bxb7 {[%emt 0:01:44]} Ra7 {[%emt 0:00:05]} 29. Bg2 {[%emt 0:00:31]} Rd7 {[%emt 0:00:53]} 30. Qxb6 {[%emt 0:00:36]} Qxg4 {[%emt 0:02:44]} 31. Qxa5 {[%emt 0:00:29]} Rf5 {[%emt 0:00:01]} 32. Qa8+ {[%emt 0:00:23]} Kg7 {[%emt 0:00:01]} 33. Qe4 {[%emt 0:00:38]} Rd1+ {[%emt 0:01:04]} 0-1

[Event "CZE-ch U14 Open 2023"]
[Site "Teplice"]
[Date "2023.03.17"]
[Round "8.9"]
[White "Tichy, Tomas"]
[Black "Soucek, Andrej"]
[Result "1-0"]
[ECO "C68"]
[WhiteElo "1810"]
[BlackElo "1679"]
[Annotator "NA RC COMBH"]
[PlyCount "69"]
[EventDate "2023.03.09"]
[EventType "swiss"]
[EventCountry "CZE"]
[SourceTitle "playchess.com"]
[Source "ChessBase"]
[SourceQuality "1"]
[TimeControl "40/5400+30:1800+30"]

1. e4 {[%emt 0:00:05]} e5 {[%emt 0:00:10]} 2. Nf3 {[%emt 0:00:24]} Nc6 {[%emt 0:00:08]} 3. Bb5 {[%emt 0:00:05]} a6 {[%emt 0:00:18]} 4. Bxc6 {[%emt 0:00:13]} dxc6 {[%emt 0:00:05]} 5. O-O {[%emt 0:00:56]} Bg4 {[%emt 0:00:48]} 6. h3 {[%emt 0:00:51]} h5 {[%emt 0:00:14]} 7. d3 {[%emt 0:01:32]} Qf6 {[%emt 0:00:26]} 8. Nbd2 {[%emt 0:01:11]} Ne7 {[%emt 0:06:09]} 9. Re1 {[%emt 0:02:24]} Bxf3 {[%emt 0:09:27]} (9... Ng6 $1 $11) 10. Qxf3 {[%emt 0:06:43]} Qe6 {[%emt 0:08:33]} 11. Nb3 {[%emt 0:07:08]} Ng6 {[%emt 0:08:07]} 12. d4 {[%emt 0:10:19]} O-O-O {[%emt 0:07:05]} 13. Be3 {[%emt 0:07:34]} Be7 {[%emt 0:14:00]} 14. Rad1 {[%emt 0:14:24]} Qf6 {[%emt 0:00:27]} 15. Qxf6 {[%emt 0:06:06]} Bxf6 {[%emt 0:05:11]} 16. d5 {[%emt 0:00:46]} Ne7 {[%emt 0:03:21]} 17. c4 {[%emt 0:01:37]} b6 {[%emt 0:10:30]} 18. Rd2 {[%emt 0:03:34]} c5 {[%emt 0:05:10]} 19. Nc1 {[%emt 0:04:58]} Kb7 {[%emt 0:07:39]} 20. f4 {[%emt 0:01:40]} Nc8 {[%emt 0:00:50]} 21. fxe5 {[%emt 0:02:00]} Bxe5 {[%emt 0:00:02]} 22. Nd3 {[%emt 0:00:24]} Bg3 {[%emt 0:01:55]} 23. Bf2 {[%emt 0:00:31]} Bxf2+ {[%emt 0:00:17]} 24. Rxf2 {[%emt 0:03:01]} f6 {[%emt 0:00:30]} 25. Nf4 {[%emt 0:04:51]} Nd6 {[%emt 0:04:06]} 26. Ne6 {[%emt 0:00:27]} Rd7 {[%emt 0:00:03]} 27. b3 {[%emt 0:00:24]} Re8 {[%emt 0:03:47]} 28. e5 {[%emt 0:00:48]} fxe5 {[%emt 0:00:34]} 29. Rxe5 {[%emt 0:00:20]} Ree7 {[%emt 0:00:28]} (29... c6 $16) 30. Rxh5 {[%emt 0:03:25]} Ne4 {[%emt 0:00:54]} 31. Rf3 {[%emt 0:02:15]} c6 {[%emt 0:00:27]} 32. Re3 $18 {[%emt 0:02:36]} cxd5 {[%emt 0:01:41]} 33. cxd5 {[%emt 0:01:10]} Nf6 {[%emt 0:00:07]} 34. Rhe5 {[%emt 0:02:16]} Rxd5 {[%emt 0:01:47]} 35. Nxc5+ {[%emt 0:01:10]} 1-0

[Event "CZE-ch U14 Open 2023"]
[Site "Teplice"]
[Date "2023.03.17"]
[Round "8.11"]
[White "Striz, Tadeas"]
[Black "Hrbek, Jachym"]
[Result "0-1"]
[ECO "B33"]
[WhiteElo "1503"]
[BlackElo "1824"]
[Annotator "NA RC COMBH"]
[PlyCount "62"]
[EventDate "2023.03.09"]
[EventType "swiss"]
[EventCountry "CZE"]
[SourceTitle "playchess.com"]
[Source "ChessBase"]
[SourceQuality "1"]
[TimeControl "40/5400+30:1800+30"]

1. e4 {[%emt 0:00:04]} c5 {[%emt 0:00:08]} 2. Nf3 {[%emt 0:00:05]} Nc6 {[%emt 0:00:03]} 3. d4 {[%emt 0:00:10]} cxd4 {[%emt 0:00:09]} 4. Nxd4 {[%emt 0:00:02]} Nf6 {[%emt 0:00:08]} 5. Nc3 {[%emt 0:00:23]} e5 {[%emt 0:00:12]} 6. Ndb5 {[%emt 0:00:42]} d6 {[%emt 0:00:19]} 7. Bg5 {[%emt 0:00:06]} a6 {[%emt 0:00:12]} 8. Na3 {[%emt 0:06:39]} b5 {[%emt 0:00:26]} 9. Nd5 {[%emt 0:00:01]} Be7 {[%emt 0:00:27]} 10. Bxf6 {[%emt 0:00:05]} Bxf6 {[%emt 0:00:08]} 11. c3 {[%emt 0:00:13]} Rb8 {[%emt 0:00:07]} 12. Nc2 {[%emt 0:00:57]} Bg5 {[%emt 0:00:09]} 13. Bd3 {[%emt 0:01:01]} O-O {[%emt 0:00:19]} 14. O-O {[%emt 0:00:43]} Be6 {[%emt 0:00:20]} 15. Nce3 {[%emt 0:00:22]} Ne7 {[%emt 0:00:36]} 16. Qf3 {[%emt 0:03:04]} (16. Bc2 $11) 16... Nxd5 {[%emt 0:08:27]} 17. Nxd5 {[%emt 0:16:34]} Bxd5 {[%emt 0:02:40]} 18. exd5 {[%emt 0:00:09]} g6 {[%emt 0:00:52]} 19. g4 {[%emt 0:06:50]} Bf4 {[%emt 0:11:43]} 20. Kg2 {[%emt 0:01:41]} Rb7 {[%emt 0:04:02]} 21. Rh1 {[%emt 0:10:51]} Qh4 {[%emt 0:06:07]} 22. a4 {[%emt 0:07:18]} (22. Rhg1 $17) 22... bxa4 {[%emt 0:09:33]} 23. Rxa4 {[%emt 0:00:29]} Rxb2 {[%emt 0:00:21]} 24. Rxa6 $2 {[%emt 0:01:52]} (24. Rb4 Rd2 25. Be2) 24... Rd2 {[%emt 0:00:54]} (24... f5 $142 25. Be2 Qh6 26. gxf5 Qg5+ 27. Kf1 Rb1+ 28. Bd1 e4) 25. Bb1 $2 {[%emt 0:12:17]} (25. Raa1) 25... Rb8 {[%emt 0:02:10]} 26. h3 {[%emt 0:03:39]} Rbb2 {[%emt 0:06:07]} 27. Rf1 {[%emt 0:00:08]} h5 {[%emt 0:02:56]} 28. gxh5 {[%emt 0:06:54] [#]} Rxb1 $1 {[%emt 0:02:28] Remove Defender} 29. Rxb1 {[%emt 0:00:57]} (29. hxg6 Rxf1 30. gxf7+ Kxf7 31. Kxf1 e4 32. Ra7+ Kf6) 29... e4 {[%emt 0:00:14]} 30. Ra8+ {[%emt 0:01:43]} Kg7 {[%emt 0:00:18]} 31. h6+ {[%emt 0:00:08]} Kh7 {[%emt 0:00:59]} 0-1